bitfinex-derivatives/quotes_ETHF0:USTF0_20251001
["timestamp","ask_amount","ask_price","bid_price","bid_amount"]
[1759356485954,1.0125027,4326.0,4325.9,41.2637]
[1759356486152,1.0125027,4326.0,4325.9,41.4997]
[1759356486353,0.7130027,4326.0,4325.9,42.1869]
[1759356486559,0.0023027,4326.0,4325.9,42.1869]
[1759356488561,1.6351,4327.4,4327.3,0.4637]
[1759356488766,1.6351,4327.4,4327.3,1.8544]
[1759356489157,3.1188,4328.1,4328.0,0.2853]
[1759356489354,1.65271279,4330.1,4330.0,1.4273]
[1759356489568,0.7107,4331.4,4330.4,0.4961]
[1759356489863,0.7107,4331.3,4330.9,3.2078]
[1759356490068,0.41544,4330.7,4330.5,40.8]
[1759356490361,0.7107,4329.9,4329.8,3.2078]
[1759356490561,0.7107,4328.9,4328.6,36.061]
[1759356490766,0.7107,4328.9,4328.5,36.059]
[1759356490967,0.7107,4328.7,4328.0,0.49880582]
[1759356491260,1.12636,4328.4,4328.0,36.06070582]
[1759356491452,1.12636,4328.4,4328.0,0.00270582]
[1759356491453,0.7107,4328.1,4328.0,0.00270582]
[1759356491653,0.71235144,4328.1,4328.0,0.23870582]
[1759356492265,0.71235144,4328.1,4328.0,0.00270582]
[1759356492466,5.71235144,4328.1,4328.0,0.23870582]
[1759356492661,0.71235144,4328.1,4328.0,0.23870582]
[1759356492869,1.12803144,4328.1,4328.0,0.23870582]
[1759356493256,1.12803144,4328.1,4325.9,2.57491293]
[1759356493257,0.41576,4327.3,4327.2,3.2078]
[1759356493463,0.7107,4327.8,4327.3,0.4961]
[1759356493769,0.7107,4327.8,4327.7,3.2078]
[1759356493955,0.7107,4327.8,4327.7,44.2438]
[1759356494366,0.7107,4327.8,4327.7,44.24596811]
[1759356496269,0.7107,4327.8,4327.7,40.80216811]
[1759356496570,1.6351,4327.8,4327.7,0.23816811]
[1759356498272,6.6351,4327.8,4327.4,40.8]
[1759356498464,0.7107,4327.1,4327.0,36.05]
[1759356498663,0.2995,4327.5,4327.4,0.9312]
[1759356498865,1.18209,4327.0,4326.9,0.4637]
[1759356499067,1.63969,4327.0,4326.9,0.4637]
[1759356499366,2.35039,4327.0,4326.9,40.80287685]
[1759356499563,2.35039,4327.0,4326.9,41.03987685]
[1759356500073,1.59326,4327.3,4327.2,0.9312]
[1759356500367,1.59326,4327.3,4327.2,4.375]
[1759356500368,1.1775,4327.3,4327.2,4.375]
[1759356500568,1.6351,4327.3,4327.2,4.375]
[1759356500969,1.03916,4328.4,4327.5,0.9467]
[1759356500970,0.41574,4327.6,4327.5,0.9467]
[1759356501173,1.13544,4327.6,4327.5,1.1827]
[1759356501564,0.7197,4327.6,4327.5,1.1827]
[1759356502258,0.7197,4327.8,4327.5,1.1827]
[1759356502458,0.7197,4327.8,4327.7,4.1545]
[1759356502668,0.7197,4327.8,4327.7,4.8984]
[1759356502866,1.0192,4328.0,4327.9,0.9467]
[1759356503174,0.00165144,4328.1,4328.0,1.4546]
[1759356503868,0.00165144,4328.1,4328.0,42.2546]
[1759356504774,0.00165144,4328.1,4328.0,42.3947]
[1759356504968,0.00165144,4328.1,4328.0,42.2546]
[1759356505872,0.73145144,4328.1,4328.0,77.083]
[1759356506068,0.00165144,4328.1,4328.0,77.5884]
[1759356506269,1.0293,4329.0,4328.9,0.9642]
[1759356506467,1.0293,4329.0,4328.9,1.7056]
[1759356506468,0.7298,4329.0,4328.9,1.7056]
[1759356506771,1.60157,4329.3,4329.2,0.9642]
[1759356506972,1.60157,4329.3,4328.8,3.2078]
[1759356506973,1.644,4328.9,4328.8,39.2538]
[1759356507175,0.7298,4328.9,4328.8,39.9962]
[1759356507370,0.2877,4329.5,4328.9,0.9642]
[1759356507573,1.47611275,4329.5,4329.4,0.9642]
[1759356507775,0.00241275,4329.5,4329.4,1.7066]
[1759356507974,0.73221275,4329.5,4329.4,37.7516]
[1759356508175,0.73221275,4329.5,4329.4,78.5516]
[1759356508473,0.73221275,4329.5,4329.4,81.7594]
[1759356508974,1.01731275,4329.5,4329.4,81.016]
[1759356509168,1.01731275,4329.5,4329.4,81.253]
[1759356509377,1.01731275,4329.5,4329.4,81.7584]
[1759356509564,1.01731275,4329.5,4329.4,44.972]
[1759356509769,1.01731275,4329.5,4329.4,45.209]
[1759356510069,1.01731275,4329.5,4329.4,45.2346]
[1759356510275,1.01731275,4329.5,4329.4,44.7292]
[1759356510872,1.01731275,4329.5,4329.4,44.0078]
[1759356511176,1.01731275,4329.5,4329.4,44.2448]
[1759356511671,0.73221275,4329.5,4329.4,44.2448]
[1759356511871,1.01731275,4329.5,4329.4,44.2448]
[1759356512974,1.01731275,4329.5,4329.4,44.0078]
[1759356513177,1.01731275,4329.5,4329.4,44.2448]
[1759356513675,1.01731275,4329.5,4329.4,44.0078]
[1759356513872,1.01731275,4329.5,4329.4,44.2448]
[1759356514870,0.00241275,4329.5,4329.4,44.7502]
[1759356515265,0.73221275,4329.5,4329.4,44.2448]
[1759356515570,1.01731275,4329.5,4329.4,44.2448]
[1759356515973,0.00241275,4329.5,4329.4,44.7502]
[1759356516976,0.00241275,4329.5,4329.4,44.93660881]
[1759356517179,1.0149,4330.5,4330.4,0.9642]
[1759356517373,1.0149,4330.5,4330.4,4.409]
[1759356517775,1.9291,4330.5,4330.4,44.972]
[1759356517972,1.9291,4330.5,4330.4,45.209]
[1759356518179,1.93072261,4330.5,4330.4,45.21141921]
[1759356519676,2.34617261,4330.5,4330.4,44.49461921]
[1759356519874,7.34617261,4330.5,4330.4,41.03941921]
[1759356520075,0.2851,4329.5,4329.3,3.2078]
[1759356520275,2.05961,4328.9,4328.8,3.2078]
[1759356520476,1.0149,4328.5,4328.4,0.18438202]
[1759356520680,1.0149,4328.5,4328.4,0.237]
[1759356521181,1.0149,4328.5,4328.4,0.23930932]
[1759356521689,1.0149,4328.5,4327.8,3.2078]
[1759356521690,0.7298,4327.9,4327.8,3.2078]
[1759356521885,0.7298,4327.9,4327.8,3.4448]
[1759356522183,0.7298,4327.9,4327.8,44.2448]
[1759356522383,5.7298,4327.9,4327.8,44.0078]
[1759356522575,5.7298,4327.9,4327.8,3.44768455]
[1759356523283,5.7298,4327.9,4327.8,0.23988455]
[1759356523983,5.7298,4327.9,4327.8,0.00288455]
[1759356524184,6.21615048,4327.9,4327.8,0.00288455]
[1759356524485,0.7298,4327.3,4327.2,3.2078]
[1759356524685,0.7298,4327.3,4327.2,3.4448]
[1759356525486,0.73263103,4327.3,4327.2,3.21043131]
[1759356525687,0.73263103,4327.3,4327.2,3.44743131]
[1759356526583,1.64683103,4327.3,4327.2,3.44743131]
[1759356527384,1.64683103,4327.3,4327.2,3.21043131]
[1759356527576,1.64683103,4327.3,4327.2,3.93183131]
[1759356527779,1.64683103,4327.3,4327.2,4.41163131]
[1759356528181,1.64683103,4327.3,4327.2,3.44743131]
[1759356528387,1.64683103,4327.3,4327.2,3.93183131]
[1759356529480,1.64683103,4327.3,4327.2,3.21043131]
[1759356529686,1.64683103,4327.3,4327.2,3.44743131]
[1759356530392,1.64683103,4327.3,4327.2,3.21043131]
[1759356530584,1.64683103,4327.3,4327.2,0.23963131]
[1759356530982,1.64683103,4327.3,4327.2,0.00263131]
[1759356531590,1.18883103,4327.3,4327.2,0.96683131]
[1759356531779,0.00283103,4327.3,4327.2,4.67763131]
[1759356532285,0.7298,4327.9,4327.2,49.99783131]
[1759356532488,0.7298,4327.9,4327.2,45.23483131]
[1759356532694,1.186,4327.9,4327.8,0.9642]
[1759356532889,1.644,4327.9,4327.8,0.7214]
[1759356533089,1.644,4327.9,4327.8,1.2012]
[1759356533295,1.18877547,4327.9,4327.8,1.2012]
[1759356533495,1.18877547,4327.9,4327.8,0.9642]
[1759356533696,1.64677547,4327.9,4327.8,0.237]
[1759356533890,1.5915,4327.8,4327.7,3.2078]
[1759356534103,1.5915,4327.8,4327.7,3.8993]
[1759356534396,1.5915,4327.8,4327.7,3.2078]
[1759356534695,2.00721,4327.8,4327.7,0.237]
[1759356535695,1.141,4327.3,4327.2,44.01043131]
[1759356535896,1.141,4327.3,4327.2,44.24743131]
[1759356536097,1.141,4327.3,4327.2,44.01043131]
[1759356536300,1.141,4327.3,4327.2,44.24743131]
[1759356537297,1.5915,4327.3,4327.2,3.44743131]
[1759356537899,1.5915,4327.3,4327.2,3.21043131]
[1759356538098,1.5915,4327.3,4327.2,3.44743131]
[1759356539590,1.5915,4327.3,4327.2,0.23963131]
[1759356539792,1.5915,4327.3,4327.2,0.00263131]
[1759356540002,6.5915,4327.3,4327.2,0.23963131]
[1759356541397,0.41586,4326.3,4326.2,3.2159]
[1759356541703,2.00736,4326.3,4326.2,4.1598]
[1759356541901,2.00736,4326.3,4326.2,41.0451]
[1759356542403,2.00736,4326.3,4326.2,41.03881162]
[1759356543007,2.00736,4326.3,4326.2,0.23881162]
[1759356543205,0.9079,4325.7,4325.0,3.2078]
[1759356543509,0.9079,4325.7,4325.1,41.9703]
[1759356543510,0.6836,4325.2,4325.1,41.9703]
[1759356543703,0.9814,4325.5,4325.4,0.4894]
[1759356543901,0.6836,4325.5,4325.4,1.6597]
[1759356544100,0.6836,4325.7,4325.5,0.4788]
[1759356544399,0.6836,4325.9,4325.8,1.4227]
[1759356544605,0.6836,4326.2,4325.9,1.4227]
[1759356544805,2.61308363,4326.5,4326.1,0.9439]
[1759356545009,1.141,4326.3,4326.2,0.6915]
[1759356545210,1.5915,4326.3,4326.2,0.6915]
[1759356545605,2.0074,4325.9,4325.8,0.4545]
[1759356545805,2.0074,4325.9,4325.8,0.6915]
[1759356546609,0.2978,4326.0,4325.6,3.6623]
[1759356546610,2.00741,4325.7,4325.6,3.6623]
[1759356546810,2.00741,4325.7,4325.6,3.8993]
[1759356547198,2.00741,4325.7,4325.6,3.2078]
[1759356547509,2.00741,4325.7,4325.6,0.237]
[1759356547706,2.00741,4325.7,4325.5,0.00267151]
[1759356548503,2.09641,4325.7,4325.5,0.00267151]
[1759356550205,7.09641,4325.7,4325.5,0.00267151]
[1759356550815,1.6805,4325.7,4325.5,0.00267151]
[1759356551112,1.6805,4325.7,4325.6,0.237]
[1759356551611,1.6805,4325.7,4325.6,0.6915]
[1759356551805,1.6805,4325.7,4325.6,0.237]
[1759356552304,3.99578363,4325.7,4325.6,0.237]
[1759356554906,2.00742,4325.6,4325.5,0.00267151]
[1759356555104,0.41599,4324.9,4324.8,40.8]
[1759356555309,2.00751,4324.7,4324.6,3.6623]
[1759356555505,2.00751,4324.7,4324.6,3.8993]
[1759356555810,1.5915,4324.7,4324.6,45.1887]
[1759356556007,0.2978,4325.5,4325.3,1.4227]
[1759356556206,2.09642,4325.6,4325.5,0.9439]
[1759356556407,2.09890001,4325.6,4325.5,0.9439]
[1759356557007,2.09890001,4325.6,4325.4,0.237]
[1759356557204,2.00744,4325.4,4325.3,0.00256304]
[1759356557407,1.5915,4325.4,4325.3,1.18446304]
[1759356558311,1.5915,4325.4,4325.3,0.24056304]
[1759356558509,2.00744,4325.4,4325.3,0.24056304]
[1759356558704,2.00744,4325.4,4325.3,0.00256304]
[1759356559708,2.30528,4325.0,4324.9,3.4458]
[1759356559909,4.62056363,4325.0,4324.9,0.238]
[1759356560715,4.62056363,4325.0,4324.9,0.00294833]
[1759356562412,4.62056363,4325.0,4324.9,0.48704833]
[1759356562616,2.30528,4325.0,4324.9,0.48704833]
[1759356562913,2.30528,4325.0,4324.9,0.00294833]
[1759356564122,2.37468,4324.0,4323.9,0.4688]
[1759356564325,2.37468,4324.0,4323.9,0.7058]
[1759356564618,1.9586,4324.0,4323.9,41.9574]
[1759356565019,0.9998,4324.0,4323.9,42.41397386]
[1759356565320,0.7222,4324.9,4324.8,0.4688]
[1759356565516,0.7222,4324.9,4324.8,1.6116]
[1759356565715,1.2001,4324.9,4324.8,1.6116]
[1759356566118,0.089,4325.0,4324.9,1.3746]
[1759356566322,0.089,4325.2,4325.0,0.4542]
[1759356566513,0.41595,4325.4,4325.1,1.6116]
[1759356566823,0.7222,4325.2,4325.1,1.6116]
[1759356567320,0.3868,4325.5,4325.1,6.1574]
[1759356567625,0.089,4325.5,4325.4,4.5824]
[1759356567824,0.089,4325.5,4325.4,4.8204]
[1759356568023,0.089,4325.5,4325.4,9.8204]
[1759356568320,0.8112,4325.5,4325.4,50.6204]
[1759356568626,0.089,4325.5,4325.4,50.6204]
[1759356570819,0.8112,4325.5,4325.4,50.6204]
[1759356572516,1.0888,4325.5,4325.4,44.9282]
[1759356572730,1.0888,4325.5,4325.4,45.1652]
[1759356573026,1.0888,4325.5,4325.4,45.6194]
[1759356573420,1.0888,4325.5,4325.4,45.1652]
[1759356574621,1.50473,4325.5,4325.4,45.1652]
[1759356574816,0.089,4325.5,4325.4,45.1678]
[1759356575715,0.8112,4325.5,4325.4,45.1678]
[1759356575928,0.089,4325.5,4325.4,45.1678]
[1759356576424,1.22713,4325.5,4325.4,45.1678]
[1759356576629,1.0888,4325.5,4325.4,44.9308]
[1759356576829,1.0888,4325.5,4325.4,44.7136]
[1759356577120,1.50473,4325.5,4325.4,44.4766]
[1759356577321,1.50473,4325.5,4325.4,44.7136]
[1759356577721,0.089,4325.5,4325.4,45.1678]
[1759356583027,0.00248001,4325.6,4325.5,0.9204]
[1759356583028,0.09148001,4325.6,4325.5,0.9204]
[1759356583330,0.09148001,4325.6,4325.5,1.3746]
[1759356585534,0.81368001,4325.6,4325.5,1.3746]
[1759356586232,1.29158001,4325.6,4325.5,1.3746]
[1759356587138,1.70750001,4325.6,4325.5,1.3746]
[1759356587328,1.70750001,4325.6,4325.5,0.9204]
[1759356588337,2.18840001,4325.6,4325.5,0.4688]
[1759356588630,2.18840001,4325.6,4325.5,0.237]
[1759356589430,2.18840001,4325.6,4325.4,44.0078]
[1759356589431,1.41573,4325.5,4325.4,44.0078]
[1759356589736,1.41573,4325.5,4325.4,44.2448]
[1759356590125,1.50473,4325.5,4325.4,44.0078]
[1759356590329,1.50473,4325.5,4325.4,44.2448]
[1759356593132,1.0888,4325.5,4325.4,44.2448]
[1759356593328,1.50473,4325.5,4325.4,44.2448]
[1759356595240,1.50473,4325.5,4325.4,44.6748]
[1759356595636,1.50473,4325.5,4325.4,44.2448]
[1759356596228,1.50473,4325.5,4325.4,44.0078]
[1759356596435,1.50473,4325.5,4325.4,44.2438]
[1759356596637,1.50473,4325.5,4325.4,44.0078]
[1759356596939,1.50473,4325.5,4325.4,44.2438]
[1759356597634,1.50473,4325.5,4325.4,44.0078]
[1759356597835,1.50473,4325.5,4325.4,44.2438]
[1759356598433,1.99556012,4325.5,4325.4,44.2438]
[1759356599234,1.99556012,4325.5,4325.4,3.4438]
[1759356599538,2.87976012,4325.5,4325.4,4.3782]
[1759356599939,2.87976012,4325.5,4325.4,3.4438]
[1759356600141,2.87976012,4325.5,4325.4,3.9062]
[1759356600343,0.57983012,4325.5,4325.4,4.8082]
[1759356600639,0.089,4325.5,4325.4,6.03476497]
[1759356600840,0.089,4325.5,4325.4,4.8082]
[1759356601545,1.5151,4325.5,4325.4,4.3782]
[1759356602335,1.9659,4325.5,4325.4,4.3782]
[1759356602539,1.9659,4325.5,4325.4,3.9062]
[1759356602744,1.9659,4325.5,4325.4,4.3782]
[1759356603055,0.089,4325.5,4325.4,4.8082]
[1759356603934,1.5151,4325.5,4325.4,4.8082]
[1759356604140,1.5151,4325.5,4325.4,4.3782]
[1759356605642,1.9659,4325.5,4325.4,4.1422]
[1759356605839,1.9659,4325.5,4325.4,4.3782]
[1759356607242,0.089,4325.5,4325.4,4.8082]
[1759356609450,1.5151,4325.5,4325.4,4.3782]
[1759356609746,1.93103,4325.5,4325.4,4.3782]
[1759356611544,1.93103,4325.5,4325.4,3.6702]
[1759356611545,2.38183,4325.5,4325.4,3.6702]
[1759356611747,2.88230372,4325.5,4325.4,0.236]
[1759356611944,0.8842,4325.2,4325.1,40.8]
[1759356612149,2.10806,4325.2,4325.1,40.8]
[1759356612349,2.01909,4324.9,4324.8,3.2078]
[1759356612551,2.01909,4324.9,4324.8,3.4438]
[1759356612744,2.01909,4324.9,4324.8,44.0078]
[1759356612954,1.30026,4324.3,4324.2,4.1422]
[1759356613250,2.10816,4324.3,4324.2,3.2078]
[1759356613439,2.60841086,4324.3,4324.2,0.236]
[1759356614153,2.10816,4324.3,4324.2,0.236]
[1759356614448,1.13497,4324.1,4324.0,40.8]
[1759356614653,1.13497,4324.1,4324.0,41.036]
[1759356614856,1.22397,4324.1,4324.0,41.036]
[1759356615055,2.10817,4324.1,4324.0,0.236]
[1759356615552,2.10817,4324.1,4323.9,0.00237386]
[1759356615553,1.8769,4324.0,4323.9,0.93677386]
[1759356615751,2.46553448,4324.0,4323.9,0.23837386]
[1759356616148,0.7189,4323.9,4323.5,40.8]
[1759356616348,1.6031,4323.2,4323.1,3.6702]
[1759356616551,1.6031,4323.2,4323.1,3.9062]
[1759356616757,2.01925,4323.2,4323.1,44.7062]
[1759356617155,2.01925,4323.2,4323.1,44.70807342]
[1759356617357,2.01925,4323.2,4323.1,44.70907342]
[1759356618464,2.01925,4323.2,4323.1,44.47207342]
[1759356618657,1.1523,4323.2,4323.1,44.70807342]
[1759356618858,0.7189,4323.7,4323.5,0.43]
[1759356619063,3.2078,4323.8,4323.7,1.3644]
[1759356619361,3.2078,4323.8,4323.7,1.6014]
[1759356619557,0.089,4323.8,4323.7,1.1714]
[1759356619765,0.089,4323.8,4323.7,1.6014]
[1759356619956,0.41599,4324.9,4323.7,6.1714]
[1759356620167,3.21028001,4325.6,4324.9,1.3644]
[1759356620462,1.56824,4325.4,4325.3,0.9344]
[1759356620654,1.56824,4325.4,4325.3,1.1714]
[1759356621055,2.01904,4325.4,4325.3,1.1714]
[1759356622061,1.11137,4325.1,4325.0,40.8]
[1759356622261,2.0213,4324.8,4324.7,3.6371]
[1759356622563,2.0213,4324.8,4324.7,4.347]
[1759356622765,2.0213,4324.8,4324.7,45.147]
[1759356623760,1.5721,4324.8,4324.7,45.147]
[1759356626873,0.8993,4324.2,4324.1,3.6541]
[1759356627078,1.559,4324.2,4324.1,3.8901]
[1759356627566,1.97506,4324.2,4324.1,3.6541]
[1759356627768,1.0991,4323.7,4323.6,4.1267]
[1759356627970,1.0991,4323.7,4323.6,4.3627]
[1759356628772,1.51521,4323.7,4323.6,4.3627]
[1759356629473,1.51521,4323.7,4323.6,4.7696]
[1759356629874,1.51521,4323.7,4323.6,4.3627]
[1759356631674,1.51521,4323.7,4323.6,4.1267]
[1759356631874,1.97511,4323.7,4323.6,3.6541]
[1759356632073,1.51521,4323.7,4323.6,4.3627]
[1759356632673,1.97511,4323.7,4323.6,1.1549]
[1759356633076,1.51521,4323.7,4323.6,1.1549]
[1759356633475,1.97511,4323.7,4323.6,1.1549]
[1759356634278,1.97511,4323.7,4323.2,41.2069]
[1759356634476,1.97514,4323.4,4323.3,0.236]
[1759356634682,1.97514,4323.4,4323.3,1.1549]
[1759356635680,1.51524,4323.4,4323.3,1.1549]
[1759356635881,0.6597,4323.9,4323.6,0.9189]
[1759356636077,1.51519,4323.9,4323.8,0.9189]
[1759356636278,1.97509,4323.9,4323.8,1.1549]
[1759356636586,1.97509,4323.9,4323.8,0.236]
[1759356636781,1.07584,4323.3,4323.2,40.8]
[1759356636975,1.07584,4323.3,4323.2,41.036]
[1759356637279,1.07584,4323.3,4323.2,40.8]
[1759356637484,1.07584,4323.3,4323.2,41.036]
[1759356638085,1.07584,4323.3,4323.2,40.8]
[1759356638286,1.559,4323.2,4323.1,0.44817342]
[1759356638488,1.559,4323.2,4323.1,0.68417342]
[1759356638794,1.559,4323.2,4323.1,41.48417342]
[1759356639685,0.9355,4323.5,4323.2,1.3258]
[1759356639883,1.07584,4323.4,4323.3,1.1549]
[1759356640284,1.51524,4323.4,4323.3,1.1549]
[1759356640791,1.97514,4323.4,4323.3,1.1549]
[1759356641291,1.97515,4323.2,4323.1,0.00187342]
[1759356641478,1.97515,4323.2,4323.1,0.23787342]
[1759356641684,1.97515,4323.2,4323.1,0.68417342]
[1759356642084,1.97515,4323.2,4323.1,0.00187342]
[1759356642290,1.97515,4323.2,4323.1,0.23787342]
[1759356642898,1.97515,4323.2,4323.1,0.00187342]
[1759356643281,1.97515,4323.2,4323.1,0.23787342]
[1759356643484,1.97515,4323.2,4323.1,0.00187342]
[1759356643689,1.97515,4323.2,4323.1,0.23787342]
[1759356644188,4.29595571,4323.2,4323.1,0.00187342]
[1759356644583,1.97515,4323.2,4323.1,0.00187342]
[1759356644892,1.97515,4323.2,4323.1,0.92077342]
[1759356645387,1.07581,4323.7,4323.6,1.3258]
[1759356645588,0.41607,4324.1,4323.9,1.3258]
[1759356645790,4.7229,4324.8,4324.7,0.9189]
[1759356645992,5.22297873,4324.8,4324.7,1.1549]
[1759356646185,5.68287873,4324.8,4324.7,0.236]
[1759356646694,0.41606,4324.2,4323.9,1.3258]
[1759356646891,0.41606,4324.2,4324.1,1.3258]
[1759356647081,0.41606,4324.2,4324.1,42.1258]
[1759356647288,1.07576,4324.2,4324.1,42.1258]
[1759356647595,1.07576,4324.2,4324.1,41.7189]
[1759356648594,3.39656571,4324.2,4324.1,41.036]
[1759356649191,1.79093,4324.5,4324.4,0.9189]
[1759356649491,1.79093,4324.5,4324.4,1.5618]
[1759356649691,1.79093,4324.5,4324.4,1.1549]
[1759356649892,2.25083,4324.5,4324.4,1.1549]
[1759356651296,0.4394,4324.2,4324.1,44.0078]
[1759356651596,1.51516,4324.2,4324.1,44.2438]
[1759356651792,1.07576,4324.2,4324.1,44.2438]
[1759356652098,1.07576,4324.2,4324.1,44.6507]
[1759356652794,1.07576,4324.2,4324.1,44.2438]
[1759356654699,3.39656571,4324.2,4324.1,40.8]
[1759356654895,3.39656571,4324.2,4324.1,41.036]
[1759356655197,4.27716571,4324.2,4324.1,0.236]
[1759356655390,1.99051,4323.7,4323.6,3.6399]
[1759356655597,1.99051,4323.7,4323.6,44.6759]
[1759356657501,1.99051,4323.7,4323.6,44.4399]
[1759356657800,1.99051,4323.7,4323.6,44.6759]
[1759356658204,2.6432657,4323.7,4323.6,44.6759]
[1759356658797,2.2271557,4323.7,4323.6,44.6759]
[1759356658998,0.2758,4324.5,4324.2,1.2646]
[1759356658999,1.10985,4324.3,4324.2,1.2646]
[1759356659300,0.41605,4324.3,4324.2,1.5006]
[1759356659500,1.7626057,4324.3,4324.2,1.5006]
[1759356659998,2.2019057,4324.3,4324.2,1.1172]
[1759356660198,1.99045,4324.3,4324.2,1.1172]
[1759356660497,0.41603,4324.5,4324.4,1.2646]
[1759356660702,0.41603,4324.5,4324.4,1.5006]
[1759356661093,0.41601,4324.7,4324.5,0.3834]
[1759356661298,0.41601,4324.7,4324.6,1.5006]
[1759356661494,1.10979,4324.9,4324.8,0.8812]
[1759356661696,1.10979,4324.9,4324.8,1.5006]
[1759356661896,1.54909,4324.9,4324.8,1.1172]
[1759356663605,1.54909,4324.9,4324.8,1.5006]
[1759356664101,1.54909,4324.9,4324.8,1.1172]
[1759356665406,1.99039,4324.9,4324.8,1.1172]
[1759356665916,1.99039,4324.9,4324.8,41.9172]
[1759356667413,1.5744,4324.9,4324.8,41.9172]
[1759356667717,1.19,4325.2,4325.0,1.2646]
[1759356667911,1.19,4325.2,4325.1,1.5006]
[1759356668415,1.19,4325.2,4325.1,4.7084]
[1759356668811,0.00248001,4325.6,4325.5,1.2646]
[1759356669013,0.00248001,4325.6,4325.5,1.5006]
[1759356669214,0.41840001,4325.6,4325.5,1.5006]
[1759356669413,1.55150001,4325.6,4325.5,1.1172]
[1759356669719,1.99280001,4325.6,4325.5,1.1172]
[1759356670012,1.99280001,4325.6,4325.1,3.5912]
[1759356670013,1.99036,4325.2,4325.1,3.6399]
[1759356670220,1.99036,4325.2,4325.1,3.8759]
[1759356671516,1.99036,4325.2,4325.1,3.4438]
[1759356671715,1.99036,4325.2,4325.1,3.8759]
[1759356672113,1.5744,4325.2,4325.1,3.8759]
[1759356672316,0.9504,4325.5,4325.2,0.3834]
[1759356672514,1.36633,4325.5,4325.4,0.8812]
[1759356673116,1.80563,4325.5,4325.4,0.8812]
[1759356675420,1.3897,4325.5,4325.4,0.8812]
[1759356675716,1.80563,4325.5,4325.4,0.8812]
[1759356676106,2.24693,4325.5,4325.4,0.8812]
[1759356676510,0.69628001,4325.6,4325.4,0.8812]
[1759356676705,0.69628001,4325.6,4325.5,1.5006]
[1759356676918,1.11220001,4325.6,4325.5,1.5006]
[1759356677112,1.55150001,4325.6,4325.5,1.5006]
[1759356677518,1.13558001,4325.6,4325.5,1.5006]
[1759356677716,0.00248001,4325.6,4325.5,1.5006]
[1759356679314,0.00248001,4325.6,4325.5,42.3006]
[1759356679519,0.00248001,4325.6,4325.5,42.4407]
[1759356681010,0.00248001,4325.6,4325.5,43.0926902]
[1759356682013,1.0597,4326.9,4326.4,0.8881]
[1759356682213,2.23274,4326.5,4326.4,3.2078]
[1759356682522,1.95846,4326.3,4326.2,0.4568]
[1759356682723,2.6104502,4326.3,4326.2,0.4568]
[1759356682926,2.6104502,4326.3,4326.2,0.6928]
[1759356683119,2.61265312,4326.3,4326.2,0.0019459]
[1759356683417,1.96066292,4326.3,4326.2,0.2379459]
[1759356683719,1.50776292,4326.3,4326.2,1.1403459]
[1759356684017,1.07610292,4326.3,4326.2,1.1403459]
[1759356684320,1.93146292,4326.3,4326.2,1.1403459]
[1759356684923,1.51560292,4326.3,4326.2,1.1403459]
[1759356685522,1.93146292,4326.3,4326.2,1.1403459]
[1759356687416,1.93146292,4326.3,4326.2,0.9043459]
[1759356687616,1.93146292,4326.3,4326.2,0.6842459]
[1759356688719,1.93146292,4326.3,4326.2,0.0019459]
[1759356688921,1.93146292,4326.3,4326.2,0.2379459]
[1759356691924,1.93146292,4326.3,4326.2,0.0019459]
[1759356692125,1.93146292,4326.3,4326.2,0.2379459]
[1759356692322,1.93146292,4326.3,4326.2,0.0019459]
[1759356692524,1.96449,4325.9,4325.8,3.2078]
[1759356692724,4.28117837,4325.9,4325.8,3.2078]
[1759356692925,0.41592,4325.6,4325.5,40.8]
[1759356693230,1.96455,4325.3,4325.2,3.2078]
[1759356693525,1.96455,4325.3,4325.2,44.24607458]
[1759356694122,1.96455,4325.3,4325.2,3.44607458]
[1759356695225,1.96455,4325.3,4325.2,0.23827458]
[1759356696825,1.96455,4325.3,4325.2,0.00227458]
[1759356697023,1.9646,4324.8,4324.7,3.2078]
[1759356697223,1.9646,4324.8,4324.7,3.4438]
[1759356698221,1.9646,4324.8,4324.7,3.44664686]
[1759356698622,1.9646,4324.8,4324.7,3.21064686]
[1759356698828,6.9646,4324.8,4324.7,0.00284686]
[1759356699528,1.9646,4324.8,4324.7,0.00284686]
[1759356705931,1.09517,4324.1,4324.0,40.8]
[1759356706134,1.09517,4324.1,4324.0,41.036]
[1759356706936,1.09517,4324.1,4324.0,41.03891294]
[1759356712638,1.09517,4324.1,4324.0,41.40111294]
[1759356712937,1.09517,4324.1,4324.0,41.03891294]
[1759356713940,1.96147,4324.1,4324.0,0.00291294]
[1759356714236,1.96147,4324.1,4324.0,0.23891294]
[1759356714730,1.96147,4324.1,4324.0,0.00291294]
[1759356714931,0.41611,4323.7,4323.6,40.8]
[1759356715139,1.92775,4323.2,4323.1,3.6204]
[1759356715333,2.69579904,4323.2,4323.1,3.8564]
[1759356715534,2.69579904,4323.2,4323.1,44.6564]
[1759356715933,2.69847029,4323.2,4323.1,44.6586992]
[1759356718634,0.00267125,4323.2,4323.1,50.76624824]
[1759356718834,0.41605,4324.3,4324.2,1.1816]
[1759356719035,0.41605,4324.3,4324.2,1.4176]
[1759356719537,2.08121904,4325.0,4324.4,0.769]
[1759356719538,0.41603,4324.5,4324.4,0.769]
[1759356719737,0.00192385,4324.5,4324.4,4.2859]
[1759356719943,0.00192385,4324.5,4324.4,4.6254]
[1759356720645,0.00192385,4324.5,4324.4,9.6254]
[1759356720938,1.02584904,4325.5,4325.4,1.1797]
[1759356720939,1.338,4325.5,4325.4,1.1797]
[1759356721139,1.31904,4325.5,4325.4,42.2157]
[1759356721446,0.41591,4325.8,4325.7,0.4295]
[1759356721743,0.41591,4325.8,4325.7,1.4157]
[1759356721942,0.41785682,4325.8,4325.7,1.4157]